bitfinex/quotes_ETHUSD_20250731
["timestamp","ask_amount","ask_price","bid_price","bid_amount"]
[1753921735186,2.4651506,3827.9,3827.8,0.001]
[1753921735658,1.6427,3827.9,3827.8,0.001]
[1753921737097,1.2033,3827.9,3827.8,0.001]
[1753921738078,0.7516,3827.9,3827.8,0.001]
[1753921738785,1.2033,3827.9,3827.8,0.001]
[1753921738976,1.6427,3827.9,3827.8,0.001]
[1753921739179,1.80697,3827.9,3827.8,0.001]
[1753921739589,1.36757,3827.9,3827.8,0.001]
[1753921740981,1.05537,3827.9,3827.5,0.001]
[1753921741186,8.29870603,3827.6,3827.5,0.001]
[1753921741399,1.76383924,3827.6,3827.1,0.04]
[1753921741572,0.4517,3827.5,3827.1,0.04]
[1753921741994,0.4517,3827.4,3827.1,0.04]
[1753921742484,0.4517,3827.3,3827.1,0.04]
[1753921742808,0.4517,3827.3,3827.2,0.1304]
[1753921742988,1.2775,3827.6,3827.2,0.1304]
[1753921743176,0.14079,3827.5,3827.2,0.1304]
[1753921743378,0.14079,3827.5,3827.4,0.001]
[1753921744239,0.4517,3827.7,3827.4,0.5638]
[1753921744609,1.07877,3827.9,3827.4,0.1314]
[1753921744813,0.4517,3827.6,3827.4,0.1314]
[1753921745441,0.4517,3827.6,3827.4,2.74412696]
[1753921746150,0.16427,3827.9,3827.5,0.4324]
[1753921746341,0.4517,3827.8,3827.5,0.4324]
[1753921746657,0.4517,3827.8,3827.5,3.04506311]
[1753921746830,0.4517,3827.8,3827.7,0.1304]
[1753921747742,0.16427,3827.9,3827.7,0.1304]
[1753921747941,0.61597,3827.9,3827.7,0.1304]
[1753921748315,0.16427,3827.9,3827.7,0.1304]
[1753921748555,0.4517,3827.8,3827.7,0.1304]
[1753921749521,0.4517,3827.8,3827.4,0.1314]
[1753921749720,0.4517,3827.8,3827.4,0.001]
[1753921749964,0.16427,3827.9,3827.6,0.1304]
[1753921750132,0.61597,3827.9,3827.6,0.1304]
[1753921750457,0.16427,3827.9,3827.8,0.1304]
[1753921751022,0.61597,3827.9,3827.8,0.1304]
[1753921751932,0.16427,3827.9,3827.8,0.1304]
[1753921752834,0.61597,3827.9,3827.8,0.1304]
[1753921753715,0.63627,3827.9,3827.8,0.1304]
[1753921754756,0.7945,3828.2,3827.8,0.1304]
[1753921754921,3.0,3828.4,3828.1,0.1304]
[1753921755125,0.472,3828.3,3828.1,0.1304]
[1753921755348,3.0,3828.4,3828.1,0.1304]
[1753921755523,0.472,3828.2,3828.1,0.1304]
[1753921755724,1.6464306,3828.2,3828.1,0.1304]
[1753921757553,1.6464306,3828.2,3827.8,0.1304]
[1753921757554,2.1069306,3828.2,3827.8,0.1304]
[1753921757759,0.9325,3828.1,3827.8,0.1304]
[1753921758255,0.472,3828.0,3827.8,0.1304]
[1753921758561,0.63664306,3828.0,3827.8,0.1304]
[1753921758764,0.16464306,3828.0,3827.8,0.1304]
[1753921758966,0.63664306,3828.0,3827.8,0.1304]
[1753921759470,0.472,3827.9,3827.8,0.1304]
[1753921760027,0.16464306,3828.0,3827.9,2.61239844]
[1753921760364,0.472,3828.2,3827.9,3.07768705]
[1753921760538,0.472,3828.2,3827.9,0.4653]
[1753921760739,0.472,3828.2,3828.1,0.1304]
[1753921762079,0.7994,3828.5,3828.1,2.74266195]
[1753921762248,0.457198,3828.4,3828.2,0.4653]
[1753921762453,0.472,3828.5,3828.4,0.1304]
[1753921762676,0.472,3828.5,3828.3,0.1304]
[1753921762901,0.17018,3828.6,3828.3,0.1304]
[1753921763380,0.472,3828.5,3828.3,0.1304]
[1753921763580,0.472,3828.4,3828.3,0.1304]
[1753921764576,0.17018,3828.6,3828.3,0.1304]
[1753921764774,0.472,3828.5,3828.3,0.1304]
[1753921764981,0.17018,3828.6,3828.3,0.1304]
[1753921765167,0.472,3828.4,3828.3,0.1304]
[1753921765568,0.8168,3828.3,3827.4,0.8249]
[1753921765769,1.88366859,3828.2,3827.8,0.1304]
[1753921765951,1.85735224,3828.2,3827.8,0.1304]
[1753921766282,0.472,3828.1,3827.8,0.1304]
[1753921766983,0.1304,3828.4,3827.9,0.4653]
[1753921767149,0.9325,3828.3,3827.9,0.1304]
[1753921767343,0.9325,3828.2,3827.9,0.1304]
[1753921767686,0.472,3828.2,3827.9,0.1304]
[1753921767876,0.145898,3828.4,3827.9,0.1304]
[1753921768074,0.472,3828.1,3827.9,0.1304]
[1753921768274,0.145898,3828.4,3827.9,0.1304]
[1753921768583,0.472,3828.0,3827.9,0.1304]
[1753921768770,0.9196684,3828.3,3827.9,0.1304]
[1753921768976,0.9196684,3828.3,3827.9,0.5957]
[1753921769208,0.472,3828.2,3827.9,0.1304]
[1753921769379,0.472,3828.2,3827.9,2.6123968]
[1753921769585,0.472,3828.2,3828.1,0.1304]
[1753921770822,0.9196684,3828.3,3828.1,3.20796195]
[1753921771004,0.9196684,3828.3,3828.2,2.61219372]
[1753921771605,5.06874884,3828.4,3828.3,2.61212548]
[1753921771606,0.002,3828.4,3828.3,2.61212548]
[1753921771815,0.002,3828.4,3828.3,3.07742548]
[1753921773142,0.474,3828.4,3828.3,2.61212548]
[1753921775453,0.002,3828.4,3828.3,3.07742548]
[1753921776362,0.002,3828.4,3828.3,3.84602548]
[1753921777206,0.002,3828.4,3828.3,3.81902548]
[1753921778538,0.002,3828.4,3828.3,3.84472548]
[1753921780404,1e-08,3828.4,3828.3,4.36902548]
[1753921780609,1e-08,3828.4,3828.3,4.39472548]
[1753921781608,1e-08,3828.4,3828.3,3.97512548]
[1753921781808,0.01855019,3829.0,3828.9,3.41801615]
[1753921782426,0.01855019,3829.0,3828.9,4.01371615]
[1753921782748,0.01855019,3829.0,3828.9,3.54841615]
[1753921782944,0.01855019,3829.0,3828.9,4.01371615]
[1753921783320,0.01855019,3829.0,3828.9,4.03983331]
[1753921783521,1e-08,3829.0,3828.9,4.58983331]
[1753921783749,1e-08,3829.0,3828.9,7.58941615]
[1753921783969,1e-08,3829.0,3828.9,7.01371615]
[1753921784315,1e-08,3829.0,3828.9,4.01371615]
[1753921785616,1e-08,3829.0,3828.9,4.56371615]
[1753921785811,0.0129862,3829.6,3829.5,3.16130695]
[1753921786023,0.04,3829.9,3829.8,2.6111024]
[1753921786232,0.04,3829.9,3829.8,3.4181024]
[1753921786438,0.04,3829.9,3829.8,4.0119024]
[1753921790177,0.5167,3829.9,3829.8,3.5485024]
[1753921791327,0.5167,3829.9,3829.8,0.1304]
[1753921791528,0.5167,3829.9,3829.8,2.7415024]
[1753921791741,0.04,3829.9,3829.8,2.7415024]
[1753921791941,0.04,3829.9,3829.8,3.2049024]
[1753921793743,0.04,3829.9,3829.8,2.7415024]
[1753921793951,0.5167,3829.9,3829.8,2.7415024]
[1753921794136,0.5187,3829.9,3829.8,2.7415024]
[1753921797223,0.042,3829.9,3829.8,2.7415024]
[1753921797630,0.5187,3829.9,3829.8,2.73262769]
[1753921797833,0.042,3829.9,3829.8,3.51682769]
[1753921798146,1e-08,3829.9,3829.8,3.51682769]
[1753921798348,0.47670001,3829.9,3829.8,2.73262769]
[1753921800265,0.91690001,3829.9,3829.8,2.73262769]
[1753921800494,0.91690001,3829.9,3829.8,0.12152529]
[1753921800638,0.91690001,3829.9,3829.8,2.73262769]
[1753921801041,0.47670001,3829.9,3829.8,2.73262769]
[1753921801467,1e-08,3829.9,3829.8,3.99082769]
[1753921803247,1e-08,3829.9,3829.8,2.73262769]
[1753921803453,0.47670001,3829.9,3829.8,0.12152529]
[1753921803696,0.91690001,3829.9,3829.8,2.73262769]
[1753921804229,0.91690001,3829.9,3829.8,0.12152529]
[1753921804341,1.16804926,3829.9,3829.8,0.12152529]
[1753921804677,1.16804926,3829.9,3828.8,0.8]
[1753921804678,0.7821,3829.8,3829.6,0.1304]
[1753921804972,4.91632896,3829.7,3829.6,0.1304]
[1753921805174,5.83322896,3829.7,3829.6,0.1304]
[1753921805980,1e-08,3829.9,3829.8,2.6111024]
[1753921806356,1e-08,3829.9,3829.8,3.2049024]
[1753921806661,0.47670001,3829.9,3829.8,2.7415024]
[1753921806991,1e-08,3829.9,3829.8,2.7415024]
[1753921808072,1e-08,3829.9,3829.8,4.0138024]
[1753921809256,1.29020001,3829.9,3829.8,2.6111024]
[1753921809456,0.47670001,3829.9,3829.8,2.6111024]
[1753921809862,0.47670001,3829.9,3829.4,3.07472202]
[1753921810066,0.4767,3829.8,3829.4,3.07472202]
[1753921810270,1e-08,3829.9,3829.4,0.4634]
[1753921810461,0.4767,3829.7,3829.6,2.61123877]
[1753921811782,0.47670001,3829.9,3829.8,2.6111024]
[1753921811952,1e-08,3829.9,3829.8,2.6111024]
[1753921812685,0.47670001,3829.9,3829.8,2.6111024]
[1753921812854,0.47670001,3829.9,3829.4,2.61137481]
[1753921813059,0.4767,3829.8,3829.7,2.61114644]
[1753921814485,0.4767,3829.8,3829.6,2.61122814]
[1753921814687,1e-08,3829.9,3829.4,2.61136909]
[1753921814894,0.4508,3829.7,3829.6,2.61123877]
[1753921819196,0.4508,3829.7,3829.6,2.74163877]
[1753921819767,0.4508,3829.7,3829.6,0.1304]
[1753921820016,0.9241,3829.7,3829.0,2.61164794]
[1753921820199,1.74491635,3829.6,3828.9,0.001]
[1753921820503,1.09859164,3829.5,3828.9,0.001]
[1753921820708,0.02631635,3829.4,3828.9,2.6127037]
[1753921820867,0.02631635,3829.4,3828.9,0.001]
[1753921821073,0.9241,3829.3,3829.2,2.61151154]
[1753921821305,0.4508,3829.3,3829.2,2.61151154]
[1753921821809,0.4508,3829.3,3829.1,2.61157471]
[1753921822011,0.4508,3829.2,3829.1,2.61157471]
[1753921822788,0.4508,3829.2,3829.0,2.61163847]
[1753921823127,0.4508,3829.2,3828.9,2.61271229]
[1753921823305,0.4733,3829.5,3828.9,0.001]
[1753921823479,0.7842,3829.0,3828.9,0.001]
[1753921823679,0.7842,3829.0,3828.9,2.61271615]
[1753921823905,1.7083,3829.0,3828.9,2.61271615]
[1753921824421,1.7083,3829.0,3828.9,0.001]
[1753921824613,1.7083,3829.0,3828.9,2.61271615]
[1753921825097,1.7083,3829.0,3828.9,0.001]
[1753921825301,1.7083,3829.0,3828.9,2.61271615]
[1753921825609,1.235,3829.0,3828.9,2.61271615]
[1753921825813,1.235,3829.0,3828.9,0.001]
[1753921826119,1.235,3829.0,3828.9,2.61271615]
[1753921826120,1.7083,3829.0,3828.9,2.61271615]
[1753921826480,1.7083,3829.0,3828.9,0.001]
[1753921828417,1.87913,3829.0,3828.9,0.001]
[1753921828825,6.79954291,3829.0,3828.9,0.001]
[1753921828986,9.79954291,3829.0,3828.9,0.001]
[1753921829921,39.92994291,3829.0,3828.9,0.001]
[1753921830537,9.92994291,3829.0,3828.9,0.001]
[1753921830825,5.00953,3829.0,3828.9,0.001]
[1753921831020,5.28004933,3829.0,3828.9,0.001]
[1753921831225,5.25373298,3829.0,3828.9,0.001]
[1753921832927,5.80373298,3829.0,3828.9,0.001]
[1753921834323,1.3654,3829.0,3828.9,0.001]
[1753921834525,0.7853,3829.3,3828.9,0.001]
[1753921834770,1.2361,3829.3,3828.9,0.4447]
[1753921834979,0.8119,3829.6,3829.0,0.4437]
[1753921835281,0.69452468,3829.5,3828.9,0.001]
[1753921835560,3.7687,3829.1,3828.9,0.001]
[1753921835928,0.4508,3829.0,3828.9,0.001]
[1753921837932,3.4733,3829.7,3828.9,0.001]
[1753921837933,0.4508,3829.3,3828.9,0.001]
[1753921838354,0.4508,3829.2,3828.9,0.001]
[1753921838869,0.7513,3829.5,3828.9,0.001]
[1753921839042,0.4508,3829.1,3828.9,0.001]
[1753921839444,0.4508,3829.0,3828.9,0.001]
[1753921839832,0.7513,3829.5,3828.9,0.001]
[1753921840071,0.4508,3829.4,3828.9,0.4447]
[1753921840273,0.61834,3829.4,3828.9,0.4447]
[1753921840438,0.4508,3829.3,3828.9,0.4447]
[1753921840938,0.4508,3829.2,3828.9,0.001]
[1753921841332,0.4508,3829.1,3828.9,0.001]
[1753921841957,0.4508,3829.0,3828.9,0.001]
[1753921843483,1.25858,3829.0,3828.9,0.001]
[1753921843857,1.27218,3829.0,3828.9,0.001]
[1753921844579,1.60828,3829.0,3828.9,0.001]
[1753921844782,2.07098,3829.0,3828.9,0.001]
[1753921845638,2.20138,3829.0,3828.9,0.001]
[1753921847213,0.8145,3829.3,3828.9,0.001]
[1753921847504,0.8145,3829.3,3828.9,0.4471]
[1753921847701,0.4644,3829.2,3828.9,0.4471]
[1753921847911,0.4644,3829.2,3828.9,0.001]
[1753921848071,0.4644,3829.1,3828.9,0.001]
[1753921848466,0.8145,3829.3,3828.9,0.001]
[1753921848714,0.4644,3829.0,3828.9,0.001]
[1753921849607,0.8145,3829.3,3828.9,0.001]
[1753921849766,0.4644,3829.2,3828.9,0.4471]
[1753921850170,1.272014,3829.3,3828.9,0.4471]
[1753921850370,0.4644,3829.2,3828.9,0.4471]
[1753921850568,0.4644,3829.1,3828.9,0.4471]
[1753921850772,5.3834209,3829.1,3828.9,0.4471]
[1753921851100,4.9190209,3829.1,3828.9,0.001]
[1753921851301,0.4644,3829.0,3828.9,0.001]
[1753921852222,1.17621349,3829.0,3828.9,0.001]
[1753921852425,1.66522984,3829.0,3828.9,0.001]
[1753921852727,1.63891349,3829.0,3828.9,0.001]
[1753921853023,1.66522984,3829.0,3828.9,0.001]
[1753921854421,1.63891349,3829.0,3828.9,0.001]
[1753921855499,1.76931349,3829.0,3828.9,0.001]
[1753921855693,5.58811349,3829.0,3828.9,0.001]
[1753921855929,5.12541349,3829.0,3828.9,0.001]
[1753921856531,4.17621349,3829.0,3828.9,0.001]
[1753921859540,4.63891349,3829.0,3828.9,0.001]
[1753921860134,4.17621349,3829.0,3828.9,0.001]
[1753921860459,3.0,3829.0,3828.9,2.61271615]
[1753921860765,3.4644,3829.3,3828.9,3.05881615]
[1753921860927,0.4644,3829.2,3829.0,0.4461]
[1753921861359,3.16754,3829.4,3829.1,0.4461]
[1753921861736,3.63194,3829.4,3829.1,0.4461]
[1753921862063,4.9190209,3829.5,3829.2,0.4461]
[1753921862257,4.9190209,3829.5,3829.3,2.74184334]
[1753921862428,4.9190209,3829.5,3829.3,3.18794334]
[1753921862629,5.3834209,3829.5,3829.3,3.18794334]
[1753921862946,4.9190209,3829.5,3829.3,3.18794334]
[1753921863460,0.4644,3829.4,3829.3,0.1304]
[1753921864330,0.70923446,3829.4,3829.3,0.1304]
[1753921864965,0.70923446,3829.4,3828.9,0.001]
[1753921864966,1.78103,3829.4,3828.9,0.001]
[1753921865166,5.6845209,3829.1,3828.9,0.001]
[1753921865688,0.4644,3829.0,3828.9,0.001]
[1753921866284,1.17203965,3829.0,3828.9,0.001]
[1753921867601,4.17203965,3829.0,3828.9,0.001]
[1753921867768,4.328756,3829.0,3828.9,0.001]
[1753921867962,0.55,3828.9,3828.5,0.001]
[1753921868179,5.8500209,3828.6,3828.5,0.001]
[1753921868380,5.0494209,3828.8,3828.5,0.001]
[1753921868581,5.77831576,3828.8,3828.5,0.001]
[1753921868782,0.4644,3828.7,3828.5,0.001]
[1753921869168,5.77831576,3828.8,3828.5,0.001]
[1753921869498,0.4644,3828.6,3828.5,0.001]
[1753921872708,0.9271,3828.6,3828.5,0.001]
[1753921873005,1.72804158,3828.6,3828.5,0.001]
[1753921874921,1.26534158,3828.6,3828.5,0.001]
[1753921876428,1.71774158,3828.6,3828.5,0.001]
[1753921876800,5.50444158,3828.6,3828.5,0.001]
[1753921878791,6.05444158,3828.6,3828.5,0.001]
[1753921879142,6.29925498,3828.6,3828.5,0.001]
[1753921880498,5.84677462,3828.6,3828.5,0.001]
[1753921881247,6.29917462,3828.6,3828.5,0.001]
[1753921883251,5.84677462,3828.6,3828.5,0.001]
[1753921883441,6.29917462,3828.6,3828.5,0.001]
[1753921883944,0.55,3828.5,3828.1,0.041]
[1753921884143,9.2546209,3828.2,3828.1,0.041]
[1753921884306,3.55,3828.1,3827.5,0.001]
[1753921884504,8.0494209,3827.6,3827.5,0.001]
[1753921884710,8.85436299,3827.6,3827.5,0.001]
[1753921885020,9.32086299,3827.6,3827.5,0.001]
[1753921886214,3.0,3827.5,3827.4,0.001]
[1753921886417,3.94521635,3827.5,3827.1,0.041]
[1753921886619,8.0494209,3827.2,3827.1,0.041]
[1753921886806,3.0,3827.1,3826.3,0.1304]
[1753921887007,4.9190209,3826.6,3826.2,0.7866]
[1753921887213,4.9190209,3826.3,3826.2,0.917]
[1753921887412,4.9190209,3826.3,3826.2,3.53055914]
[1753921887656,4.9190209,3826.6,3826.3,2.61346767]
[1753921888118,4.9190209,3826.6,3826.4,0.4695]
[1753921888447,5.3855209,3826.6,3826.4,0.4695]
[1753921888754,4.9190209,3826.6,3826.5,0.4695]
[1753921889053,5.47061299,3826.6,3826.2,0.1304]
[1753921889218,0.55159209,3826.6,3826.3,3.08295134]
[1753921889415,4.9190209,3827.5,3826.4,1.3229]
[1753921889627,0.1304,3827.7,3827.2,2.61283313]
[1753921889823,4.9190209,3827.5,3827.3,1.2972]
[1753921890130,4.9190209,3827.5,3827.4,0.4695]
[1753921890842,4.9190209,3827.8,3827.5,2.61267145]
[1753921891046,4.9190209,3827.8,3827.6,0.1304]
[1753921891364,5.3855209,3827.8,3827.6,0.1304]
[1753921892032,3.9189,3827.7,3826.9,0.7862]
[1753921892233,4.9190209,3827.0,3826.8,0.1304]
[1753921892635,0.4665,3826.9,3826.8,0.1304]
[1753921892834,0.49281635,3826.9,3826.8,0.1304]
[1753921893136,3.94521635,3826.9,3826.1,0.04]
[1753921893321,4.9190209,3826.3,3826.1,0.1704]
[1753921894460,0.4665,3826.2,3826.1,0.04]
[1753921897284,0.82619,3826.2,3826.1,0.04]
[1753921897750,0.95659,3826.2,3826.1,0.04]
[1753921898550,1.40899,3826.2,3826.1,0.04]
[1753921898949,1.98530635,3826.2,3825.1,0.04]
[1753921899166,7.618992,3825.7,3825.1,2.78469441]
[1753921899356,0.4665,3825.6,3825.1,0.1704]
[1753921899551,0.4665,3825.5,3825.2,0.4695]
[1753921899881,0.81349408,3825.5,3825.2,0.4695]
[1753921900060,0.81349408,3825.5,3825.2,3.08373692]
[1753921900256,0.1304,3825.7,3825.4,2.61410571]
[1753921900476,0.1304,3825.7,3825.5,0.4695]
[1753921900789,0.5969,3825.7,3825.5,0.4695]
[1753921901278,7.76344264,3826.1,3825.6,0.4695]
[1753921901279,0.74135064,3826.1,3825.6,0.4695]
[1753921901479,0.83134426,3826.0,3825.7,0.4695]
[1753921901683,0.83134426,3826.0,3825.6,2.74436361]
[1753921901848,0.83134426,3826.0,3825.8,0.4695]
[1753921902051,0.42365949,3825.9,3825.6,0.1304]
[1753921902391,0.83134426,3826.0,3825.9,2.61376408]
[1753921902549,0.40525064,3826.1,3825.7,2.61390072]
[1753921902550,0.1304,3826.1,3825.7,2.61390072]
[1753921902755,0.1304,3826.1,3825.8,0.4695]
[1753921903071,0.5969,3826.1,3825.8,0.4695]
[1753921903271,0.1304,3826.1,3825.8,3.08332137]
[1753921903473,0.5904,3826.1,3825.8,3.08332137]
[1753921903678,0.1304,3826.1,3825.9,2.61374241]
[1753921903885,0.1304,3826.1,3826.0,3.90319576]
[1753921904189,7.948592,3826.8,3826.1,2.61362745]
[1753921904402,3.46,3826.7,3826.2,2.61354275]
[1753921904622,0.46,3826.6,3826.4,0.1304]
[1753921905531,3.0,3826.7,3826.4,3.21081295]
[1753921905678,3.0,3826.7,3826.5,0.467]
[1753921906018,3.46,3826.7,3826.4,0.1304]
[1753921906175,0.46,3826.6,3826.0,0.8225]
[1753921906371,0.5904,3826.6,3826.0,0.8225]
[1753921906711,0.1304,3826.1,3825.7,2.61483379]
[1753921906917,0.46,3826.0,3825.7,2.61483379]
[1753921907207,0.46,3825.9,3825.7,2.61483379]
[1753921907410,0.1304,3826.1,3825.8,0.467]
[1753921907609,0.1304,3826.1,3825.8,3.08082153]
[1753921908203,0.5904,3826.1,3825.8,3.08082153]
[1753921908872,0.1304,3826.1,3825.8,0.467]
[1753921909088,0.1304,3826.1,3825.7,2.61489157]
[1753921909089,0.46,3826.0,3825.7,0.001]
[1753921909720,0.1304,3825.9,3825.7,0.001]
[1753921910120,0.5904,3825.9,3825.7,0.001]
[1753921910336,0.65168992,3825.8,3825.7,0.001]
[1753921910537,1.11168992,3825.8,3825.7,0.001]
[1753921910846,1.3522992,3826.1,3825.7,0.001]
[1753921911136,4.26202912,3826.5,3825.8,0.8168]
[1753921911297,0.1304,3826.4,3825.9,2.61376408]
[1753921911501,0.46,3826.3,3825.9,0.467]
[1753921911741,1.43426211,3826.4,3825.9,3.08076181]
[1753921911918,0.46,3826.2,3825.9,3.08076181]
[1753921912123,0.46,3826.2,3825.9,0.467]
[1753921912443,0.46,3827.0,3826.4,2.61341464]
[1753921912750,0.37431286,3826.9,3826.4,3.90991464]
[1753921912912,0.46,3826.8,3826.4,4.04031464]
[1753921913112,0.8074,3826.6,3826.4,0.1304]
[1753921913334,0.46,3826.5,3826.4,0.1304]
[1753921913716,0.46,3826.5,3826.3,2.61348781]
[1753921914350,0.46,3826.5,3826.4,2.61342253]
[1753921914732,0.1304,3826.7,3826.2,0.467]
[1753921914922,0.5904,3826.7,3826.3,0.467]
[1753921915243,0.46,3826.6,3826.3,3.08043951]
[1753921915565,0.1304,3826.9,3826.6,2.61328594]
[1753921915718,0.1304,3826.9,3826.5,2.61334722]
[1753921916068,0.5904,3826.9,3826.6,3.08027202]
[1753921916210,0.46,3826.8,3826.6,0.467]
[1753921916412,0.8934,3826.8,3826.2,2.61349314]
[1753921916749,0.61671635,3826.7,3826.1,2.61362206]
[1753921916913,0.93628084,3826.6,3826.1,2.74402206]
[1753921917134,0.48631635,3826.5,3826.1,0.1304]
[1753921917459,0.48631635,3826.5,3826.0,2.74408865]
[1753921917460,0.5904,3826.5,3826.0,2.74408865]
[1753921917662,1.61767728,3826.5,3826.0,2.74408865]
[1753921917862,0.46,3826.4,3826.0,0.1304]
[1753921918178,0.46,3826.3,3826.0,0.1304]
[1753921918380,0.46,3826.3,3826.0,2.74408903]
[1753921918559,1.15767728,3826.5,3826.0,2.74408903]
[1753921918762,0.46,3826.2,3826.0,2.74408903]
[1753921918947,0.46,3826.2,3826.1,2.61362745]
[1753921920536,0.61910773,3826.4,3826.2,2.61352463]
[1753921920771,5.38599097,3826.4,3826.2,2.61352463]
[1753921921657,1.15767728,3826.5,3826.4,2.61342253]
[1753921921859,5.38599097,3826.7,3826.4,0.467]
[1753921921860,4.92599097,3826.7,3826.4,0.467]
[1753921922187,0.46,3826.7,3826.6,2.61328594]
[1753921922366,0.5904,3826.9,3826.6,2.61328594]
[1753921922535,1.3116391,3826.8,3826.6,2.61328594]
[1753921922931,0.46,3826.7,3826.5,3.08034857]
[1753921923534,0.46,3826.7,3826.6,2.61328594]
[1753921923935,0.46,3826.7,3826.5,3.08034932]
[1753921924535,0.462,3826.7,3826.6,2.61328594]
[1753921924770,0.462,3826.7,3826.5,3.08034106]
[1753921924963,0.002,3826.7,3826.6,3.08028594]
[1753921925357,0.002,3826.7,3826.6,2.74368594]
[1753921925550,0.002,3826.7,3826.6,3.21068594]
[1753921929071,0.002,3826.7,3826.6,4.00528594]
[1753921929375,0.002,3826.7,3826.6,3.97958594]
[1753921930437,0.002,3826.7,3826.6,4.00528594]
[1753921930837,0.002,3826.7,3826.6,3.97958594]
[1753921931649,0.002,3827.1,3827.0,3.4152128]
[1753921932054,0.002,3827.1,3827.0,3.5456128]
[1753921932273,0.462,3827.1,3827.0,3.5456128]
[1753921933100,0.002,3827.1,3827.0,4.0126128]
[1753921934466,0.4765,3827.1,3827.0,3.5456128]
[1753921934985,0.4765,3827.1,3827.0,2.7434128]
[1753921936605,0.002,3827.1,3827.0,2.7434128]
[1753921936807,0.002,3827.1,3827.0,3.2134128]
[1753921938463,0.002,3827.1,3827.0,4.0082128]
[1753921938665,0.002,3827.1,3827.0,4.06004292]
[1753921939570,1e-08,3827.1,3827.0,4.0339128]
[1753921939769,1e-08,3827.1,3827.0,4.0082128]
[1753921940674,1e-08,3827.1,3827.0,4.0339128]
[1753921941973,1e-08,3827.1,3827.0,4.0082128]
[1753921942286,1e-08,3827.1,3827.0,4.0339128]
[1753921942492,1e-08,3827.1,3827.0,7.0339128]
[1753921944104,1e-08,3827.1,3827.0,7.5582128]
[1753921944304,0.042,3828.9,3828.7,2.61184085]
[1753921944703,0.4755,3828.9,3828.7,2.61184085]
[1753921944915,0.71858035,3828.8,3828.7,2.61184085]
[1753921945099,0.908,3828.8,3828.7,2.61184085]
[1753921946711,0.4745,3828.8,3828.7,2.61184085]
[1753921947810,0.908,3828.8,3828.5,2.61193598]
[1753921948005,0.4335,3828.7,3828.5,2.61193598]
[1753921948232,0.908,3828.6,3828.1,0.751]
[1753921948432,0.908,3828.5,3828.4,2.61205725]
[1753921948941,0.908,3828.5,3828.2,2.61218192]
[1753921949146,0.8401,3828.9,3828.1,2.61225459]
[1753921949147,0.908,3828.4,3828.1,2.61225459]
[1753921949443,0.4745,3828.3,3828.2,2.61219372]
[1753921950102,0.4745,3828.6,3828.5,2.61195379]
[1753921953847,0.042,3828.9,3828.3,2.61212548]
[1753921954160,0.042,3828.9,3828.8,2.61178437]
[1753921954446,0.042,3828.9,3828.8,3.52708437]
[1753921954941,0.042,3828.9,3828.8,3.99708437]
[1753921955848,0.042,3828.9,3826.9,0.7886]
[1753921955849,0.95,3828.9,3826.9,0.7886]
[1753921956052,1.7245,3828.8,3827.8,0.7656]
[1753921956235,0.8165,3828.8,3828.4,2.61201732]
[1753921956406,0.4745,3828.7,3828.4,2.61201732]
[1753921956810,0.4745,3828.6,3827.9,0.47]
[1753921957112,0.4745,3828.6,3828.1,2.61226009]
[1753921957356,0.4335,3828.5,3828.1,2.61226009]
[1753921957544,0.8165,3828.8,3828.1,2.61226009]
[1753921957724,0.8165,3828.8,3827.9,2.61233929]
[1753921957725,0.908,3828.4,3827.9,2.61233929]
[1753921957920,0.908,3828.4,3827.8,0.7656]
[1753921957921,0.4745,3828.3,3828.0,2.61231034]
[1753921958522,0.4745,3828.3,3828.1,2.61225988]
[1753921958734,0.4745,3828.2,3828.1,2.61226195]
[1753921958914,0.4745,3828.5,3828.2,2.61218109]
[1753921959262,1.25,3828.8,3828.1,0.47]
[1753921959263,0.4745,3828.4,3828.3,2.61212548]
[1753921959465,0.4745,3828.4,3828.2,2.61219037]
[1753921959613,0.4745,3828.3,3828.2,2.61219037]
[1753921960145,1.25,3828.8,3828.2,2.61219037]
[1753921960349,0.4745,3828.8,3828.4,2.61204864]
[1753921960652,0.042,3828.9,3828.4,2.61204864]
[1753921960653,0.4745,3828.7,3828.4,2.61204864]
[1753921960955,0.4745,3828.6,3828.4,2.61204864]
[1753921961115,0.042,3828.9,3828.5,2.61198902]
[1753921961314,0.042,3828.9,3828.7,2.61185258]
[1753921961315,0.4745,3828.8,3828.7,2.61185258]
[1753921962210,0.4745,3828.8,3828.6,3.43181065]
[1753921962448,0.042,3828.9,3828.7,2.61185258]
[1753921962647,0.042,3828.9,3828.4,2.61202295]
[1753921962846,0.042,3828.9,3828.6,2.61190954]
[1753921963021,0.4745,3828.8,3828.6,2.61190954]
[1753921963553,0.4745,3828.8,3828.4,2.61201176]
[1753921963848,0.4598,3828.7,3828.4,2.61201176]
[1753921964211,0.4886,3828.6,3828.4,2.61201176]
[1753921964866,0.4886,3828.5,3827.8,1.2167]
[1753921965023,0.9484,3828.5,3827.8,1.2167]
[1753921965226,0.4598,3828.5,3828.2,2.61219225]
[1753921965432,0.4886,3828.4,3828.0,2.61232572]
[1753921965632,0.4886,3828.3,3828.0,2.61232572]
[1753921965834,1.72721635,3828.2,3827.6,2.61253756]
[1753921966155,0.4886,3828.1,3827.9,0.1304]
[1753921966362,0.9484,3828.1,3827.9,0.1304]
[1753921966660,0.4598,3828.0,3827.9,0.1304]
[1753921967157,0.9484,3828.0,3827.9,0.1304]
[1753921967379,0.4886,3828.0,3827.9,2.74279844]
[1753921968030,0.4886,3828.4,3827.9,0.5819]
[1753921968338,0.4886,3828.4,3827.4,3.38220694]